Cogmind - Beta 13 X1 @@@ ROGUE MODE // 2023.07.14 @ 21:57:58 Player: kasaphescent Result: Destroyed by EF-2AU(R) with Subdweller Laser Performance ------------- Evolutions (0) 0 Regions Visited (2) 400 Robots Destroyed (21) 105 Value Destroyed (528) 528 Prototype IDs (0) 0 Alien Tech Used (0) 0 Bonus (0) 0 TOTAL SCORE: 1033 Bonus ------- None Cogmind --------- Core Integrity 0/250 Matter 201/300 Energy 249/250 System Corruption 0% Temperature Cool (6) Movement Walking (120) Location -10/Subcaves Parts ------- > --- POWER (1) -------- Ion Engine > --- PROPULSION (2) --- Aluminum Leg Aluminum Leg > --- UTILITY (2) ------ Makeshift Hacking Suite > --- WEAPON (2) ------- Subdweller Laser Battle Cannon > --- INVENTORY (5) ---- Arachnoskeleton Wheel Subdweller Machine Gun Peak State ------------ > --- POWER ------------ Ion Engine > --- PROPULSION ------- Aluminum Leg Aluminum Leg > --- UTILITY ---------- Makeshift Hacking Suite > --- WEAPON ----------- Subdweller Laser Battle Cannon > --- INVENTORY -------- Arachnoskeleton Wheel [Rating: 13] Favorites ----------- Power Ion Engine Engine Ion Engine Propulsion Light Treads Treads Light Treads Leg Aluminum Leg Wheel Wheel Utility Small Storage Unit Device Heat Sink Storage Small Storage Unit Processor Targeting Computer Hackware Makeshift Hacking Suite Protection Scrap Shield Weapon Assault Rifle Energy Gun Subdweller Laser Energy Cannon Subdweller Beam Cannon Ballistic Gun Assault Rifle Ballistic Cannon Battle Cannon Launcher Grenade Launcher Special Weapon Flamer Build | -11 -10 -10 ------- Run | Jun Mat Sub Slots Evolved . | . . . Power . | . . . Propulsion . | . . . Utility . | . . . Weapon . | . . . Parts Attached 24 | 6 1 17 Power 2 | 1 . 1 Engine 2 | 1 . 1 Core . | . . . Reactor . | . . . Propulsion 5 | 2 . 3 Treads 2 | 1 . 1 Leg 2 | . . 2 Wheel 1 | 1 . . Hover . | . . . Flight . | . . . Utility 6 | 1 1 4 Device 2 | . 1 1 Storage 1 | 1 . . Processor 1 | . . 1 Hackware 1 | . . 1 Protection 1 | . . 1 Artifact . | . . . Weapon 11 | 2 . 9 Energy Gun 2 | . . 2 Energy Cannon 2 | . . 2 Ballistic Gun 4 | 2 . 2 Ballistic Cannon 1 | . . 1 Launcher 1 | . . 1 Special Weapon 1 | . . 1 Impact Weapon . | . . . Slashing Weapon . | . . . Piercing Weapon . | . . . Special Melee Weapon . | . . . Unidentified Prototypes . | . . . Parts Lost 5 | . . 5 Power . | . . . Propulsion 3 | . . 3 Utility 1 | . . 1 Weapon 1 | . . 1 Highest Loss Streak 3 | . . 3 To Critical Strikes . | . . . Average Slot Usage (%) 85 | . 88 85 Engine 14 | . 14 14 Treads 21 | . 14 23 Leg 2 | . . 2 Wheel 3 | . 14 1 Device 3 | . 3 3 Storage 3 | . 14 1 Processor 3 | . . 3 Hackware 2 | . . 2 Protection 2 | . . 3 Energy Gun 6 | . . 7 Energy Cannon 5 | . . 7 Ballistic Gun 8 | . 28 4 Ballistic Cannon 4 | . . 5 Special Weapon 2 | . . 2 Naked Turns . | . . . Heaviest Build 35 | 14 15 35 Greatest Support 40 | 10 10 40 Greatest Overweight (x) 3 | 3 1 2 Average Overweight (x) . | . 1 . Largest Inventory Capacity 8 | 8 8 8 Average Capacity 5 | 7 8 5 Most Carried 8 | 6 8 8 Average Carried 5 | 3 7 5 Final Capacity 8 | 8 8 5 Final Carried 8 | 6 8 5 Class Distribution -------------------- 92% | Mutant 7% | Subdweller-Mutant Dominant Class ---------------- Mutant | -10/Materials Mutant | -10/Subcaves Resources | -11 -10 -10 ----------- Run | Jun Mat Sub Matter Collected 731 | 216 110 405 Remotely . | . . . Salvage Created 571 | . 119 452 Parts 41 | . 11 30 Haulers Intercepted . | . . . Recyclers Shooed . | . . . Parts Field Recycled . | . . . Retrieved Matter . | . . . Parts Self-Destructed 15 | . . 15 Prevented . | . . . Kills | -11 -10 -10 ------- Run | Jun Mat Sub Combat Hostiles Destroyed 21 | . 5 16 Guns 13 | . 5 8 Cannons 6 | . . 6 AOE 2 | . . 2 Classes Destroyed 4 | . 2 2 Swarmer 10 | . 3 7 Grunt 2 | . 2 . Cobbler 1 | . . 1 Subdweller 9 | . . 9 Best Kill Streak 4 | . 2 4 Combat Bots Only 4 | . 2 4 Max Kills in Single Turn 2 | . 1 2 Gunslinging 1 | . . 1 Exploded 1 | . . 1 Melee . | . . . Uniques/NPCs Destroyed . | . . . Combat | -11 -10 -10 -------- Run | Jun Mat Sub Damage Taken 1243 | . 99 1144 Core 251 | . 10 241 Absorbed by Shields . | . . . Core Remaining (%) 100 | 100 . . Volleys Fired 79 | . 11 68 Largest 2 | . 2 2 Hottest 140 | . 40 140 Shots Fired 120 | . 22 98 Gun 81 | . 22 59 Cannon 36 | . . 36 Launcher 2 | . . 2 Special 1 | . . 1 Kinetic 75 | . 22 53 Thermal 43 | . . 43 Explosive 2 | . . 2 Electromagnetic . | . . . Robot Hit Streak 13 | . 13 13 Robot Miss Streak 2 | . 1 2 Penetration Max . | . . . Secondary Targets 1 | . . 1 Max Gunslinging Chain 1 | . . 1 Shots Hit Robots 76 | . 17 59 Core Hits 33 | . 8 25 Critical Kills . | . . . Critical Parts Destroyed 1 | . . 1 Critical Strikes 2 | . . 2 Destroy 1 | . . 1 Blast 1 | . . 1 Melee Attacks . | . . . Impact . | . . . Slashing . | . . . Piercing . | . . . Sneak Attacks . | . . . Combat Hostiles . | . . . Follow-up Attacks . | . . . Damage Inflicted 1514 | . 209 1305 Guns 841 | . 209 632 Cannons 541 | . . 541 Explosions 122 | . . 122 Melee . | . . . Ramming . | . . . Kinetic 794 | . 209 585 Thermal 598 | . . 598 Explosive 122 | . . 122 Electromagnetic . | . . . Impact . | . . . Slashing . | . . . Piercing . | . . . Highest Corruption . | . . . Average Corruption . | . . . Corruption Purged . | . . . Corruption Blocked . | . . . Overload Shots . | . . . Overflow Damage . | . . . Projectiles . | . . . Explosions . | . . . Melee . | . . . Knockbacks 4 | . . 4 Impact . | . . . Kinetic 3 | . . 3 Secondary 1 | . . 1 Self-Inflicted Damage . | . . . Shots . | . . . Rammed . | . . . Targets Rammed . | . . . Kicked . | . . . Crushed . | . . . Highest Temperature 81 | . . 81 Average Temperature 37 | . . 37 Received Heat Transfer 174 | . 24 150 Siege Activations . | . . . Robots Corrupted . | . . . Combat Hostiles . | . . . Parts Fried . | . . . Impact Corruptions . | . . . Robots Melted . | . . . Combat Hostiles . | . . . Parts Melted 1 | . . 1 Heat Transferred 814 | . . 814 Parts Sabotaged . | . . . Parts Stolen . | . . . Parts Stripped . | . . . Power Chain Reactions . | . . . Missiles Intercepted . | . . . Alert | -11 -10 -10 ------- Run | Jun Mat Sub Peak Influence 181 | . 181 . Initial . | . . . Average 91 | . 110 . Maximum Alert Level . | . . . Low Security (%) 100 | 100 100 . Level 1 . | . . . Level 2 . | . . . Level 3 . | . . . Level 4 . | . . . Level 5 . | . . . High Security . | . . . Max Security . | . . . Squads Dispatched 2 | . 2 . Investigation . | . . . Extermination . | . . . Reinforcement 2 | . 2 . Assault . | . . . Garrison . | . . . Intercept . | . . . Searches Triggered . | . . . Construction Impeded . | . . . Haulers Reinforced . | . . . Active Scanning Responses . | . . . Cargo Convoy Interrupts . | . . . Stealth | -11 -10 -10 --------- Run | Jun Mat Sub Distress Signals 2 | . 2 . Communications Jammed . | . . . Distress Signals . | . . . Times Spotted 27 | . 9 18 Peak Tracking Total 5 | . 3 5 Tactical Retreats 3 | . 2 1 Traps | -11 -10 -10 ------- Run | Jun Mat Sub Traps Triggered 3 | . . 3 Indirectly . | . . . Trap Hack Attempts . | . . . Triggered . | . . . Disarmed . | . . . Reprogrammed . | . . . Reused 1 | . . 1 Traps Extracted . | . . . Installed 1 | . . 1 Triggered . | . . . Machines | -11 -10 -10 ---------- Run | Jun Mat Sub Machines Disabled 1 | . . 1 Max in Single Turn 1 | . . 1 Machines Repaired . | . . . Machines Sabotaged . | . . . Overloaded Fab Kills . | . . . Hacking | -11 -10 -10 --------- Run | Jun Mat Sub Machines Accessed . | . . . Terminals . | . . . Fabricators . | . . . Repair Stations . | . . . Recycling Units . | . . . Scanalyzers . | . . . Garrison Access . | . . . Total Hacks . | . . . Successful . | . . . Failed . | . . . Catastrophic . | . . . Database Lockouts . | . . . Manual . | . . . Terminals . | . . . Fabricators . | . . . Repair Stations . | . . . Recycling Units . | . . . Scanalyzers . | . . . Garrison Access . | . . . Terminal Hacks . | . . . Fabricator Hacks . | . . . Repair Station Hacks . | . . . Recycling Unit Hacks . | . . . Scanalyzer . | . . . Garrison Access Hacks . | . . . Unauthorized Hacks . | . . . Terminals . | . . . Fabricators . | . . . Repair Stations . | . . . Recycling Units . | . . . Scanalyzers . | . . . Garrison Access . | . . . Data Cores Recovered . | . . . Used . | . . . Hacking Detections . | . . . Full Trace Events . | . . . Feedback Events . | . . . Feedback Blocked . | . . . Robot Schematics Acquired . | . . . Robots Built . | . . . Authchips . | . . . Time . | . . . Total Robot Build Rating . | . . . Part Schematics Acquired . | . . . Parts Built . | . . . Authchips . | . . . Time . | . . . Total Part Build Rating . | . . . Parts Repaired . | . . . Time . | . . . Parts Recycled . | . . . Recycled Matter . | . . . Retrieved Matter . | . . . Retrieved Components . | . . . Parts Scanalyzed . | . . . Part Schematics Acquired . | . . . Parts Damaged . | . . . Bothacking | -11 -10 -10 ------------ Run | Jun Mat Sub Used RIF Installer . | . . . Robots Hacked . | . . . Non-combat . | . . . Combat . | . . . Robot Hacks Applied . | . . . Relay Couplers Released . | . . . Fabnet Peak Effective % . | . . . Robots Rewired . | . . . Allies Hacked . | . . . Hacks Repelled . | . . . Allies | -11 -10 -10 -------- Run | Jun Mat Sub Total Allies . | . . . Largest Group . | . . . Highest-Rated Group . | . . . Highest-Rated Ally . | . . . Total Orders . | . . . Ally Attacks . | . . . Total Damage . | . . . Kills . | . . . Allies Corrupted . | . . . Allies Melted . | . . . Intel | -11 -10 -10 ------- Run | Jun Mat Sub Robot Analysis Total . | . . . Derelict Logs Recovered . | . . . Drone Launches . | . . . Drone Recoveries . | . . . Exploration | -11 -10 -10 ------------- Run | Jun Mat Sub Turns Passed 1444 | 48 237 1159 Spaces Moved 728 | 34 132 562 Core 5 | 5 . . Treads 428 | . . 428 Legs 66 | . . 66 Wheels 229 | 29 132 68 Hover . | . . . Flight . | . . . Fastest Speed 50 | 50 95 95 Average Speed 136 | 98 95 148 Slowest Speed 200 | 200 95 160 Overloaded Moves . | . . . Propulsion Burnouts . | . . . Robots Hopped . | . . . Cave-ins Triggered . | . . . Exploration Rate (%) 18 | 4 24 27 Regions Visited 2 Branch Regions 1 Pre-discovered Areas . | . . . Known Exits Taken . | . . . Unknown Exits Taken 2 | 1 1 . Scrap Searched 2 | . . 2 Spaces Dug 10 | . . 10 Terrain Destroyed 10 | . . 10 Melee . | . . . Projectile . | . . . AOE 10 | . . 10 Terrain Rammed . | . . . Walls Destroyed . | . . . Machines Disabled . | . . . Actions | -11 -10 -10 --------- Run | Jun Mat Sub Total 1053 | 45 221 787 Wait 188 | . 76 112 Move 726 | 33 131 562 Hop . | . . . Pick Up 14 | 6 2 6 Fast Attach 18 | 6 1 11 Attach 3 | . . 3 Detach 3 | . . 3 Swap 3 | . . 3 Drop 16 | . . 16 Fire 79 | . 11 68 Melee . | . . . Ram . | . . . Kick . | . . . Crush . | . . . Escape Stasis . | . . . Rewire . | . . . Trap 1 | . . 1 Miscellaneous 2 | . . 2 Route ------- -11/Junkyard -10/Materials -10/Subcaves History --------- Turn | Location | Event 24 | -11/Junkyard | Discovered new exit (range 16) 49 | -11/Junkyard | Entered Materials 282 | -10/Materials | Discovered new exit (range 6) 286 | -10/Materials | Entered Subcaves 305 | -10/Subcaves | Build established: Mutant 376 | -10/Subcaves | Core integrity fell below 50% 1292 | -10/Subcaves | Visited 4L-MR0's lab 1315 | -10/Subcaves | Core integrity fell below 20% 1354 | -10/Subcaves | Lost 3 parts (2n1w) 1386 | -10/Subcaves | Found Prototype Leg 1445 | -10/Subcaves | Destroyed by EF-2AU(R) with Subdweller Laser Last Messages --------------- 01341_ JL-VJE(R) affixes Scrap Shield Fragment to Scrap Shield. 01344_ Acquired Sub. Laser. 01345_ JL-VJE(R) knocked back. 01348_ JL-VJE(R) destroyed. 01352_ Acquired 26 matter. 01354_ Acquired 10 matter. 01355_ Acquired 17 matter. 01357_ Acquired Sub. Machine Gun. 01358_ Acquired 5 matter. 01368_ Connecting with 4L-MR0's Prototype Logs... 01368_ Current location identified: Subcaves 01380_ Testing Chamber breached. 01384_ Dropped Sub. Machine Gun. 01385_ Dropped Grenade Launcher. 01385_ Dropped Scrap Shield Fragment. 01386_ Acquired Prototype Leg. 01388_ Acquired Sub. Machine Gun. 01403_ Acquired 4 matter. 01406_ Acquired 31 matter. 01410_ Acquired 3 matter. Map ----- +----------------------------------------------------+ | ????????????????????????????????????????????????? | | ????????????????????????????????????????????????? | | ????????????????????????????????????????????????? | | ????????????????????????????????????????????????? | | ????????????????????????????????????????????????? | | ????????????????????????????????????????????????? | | ????????????????????????????????????????????????? | | ????????????????????????????????????????????????? | | ????????????????????????????????????????????????? | | ????????????????????????????????????????????????? | | ????????????????????????????????????????????????? | | ????????????????????????????????????????????????? | | ############????????????????????????????????????? | | " """"""#"]#????????????????????????????????????? | | " "X" & #????????????????????????????????????? | | ## ###????????????????????????????????????? | | + #??????????????????????????????????????? | | ##########??#???????????????????????????????????? | | ####????### #???????????????????????????????????? | | * "#####"" "#???????????????????????????????????? | | !#&% #???????###?????????##???????????????? | | % *! !##""####????# ###?????? #???????????????? | | ""^##! "#??# ##??## ##??## #????????????????? | | ####" "#### #### #?%R #????????????????? | | ## " ## ## ## % #??????????????????? | | @ #????????????????????? | | # #????????????????????? | | #####????????????????????? | | ## ###????????????????????????? | | ## #### #??????????????????????????? | | ## ########??# #??????????????????????????? | | #########?????????####??????????????????????????? | | #???????????????????????????????????????????????? | | ????????????????????????????????????????????????? | | ????????????????????????????????????????????????? | | ????????????????????????????????????????????????? | | ????????????????????????????????????????????????? | | ????????????????????????????????????????????????? | | ????????????????????????????????????????????????? | | ????????????????????????????????????????????????? | | ????????????????????????????????????????????????? | | ????????????????????????????????????????????????? | | ????????????????????????????????????????????????? | | ????????????????????????????????????????????????? | | ????????????????????????????????????????????????? | | ????????????????????????????????????????????????? | | ????????????????????????????????????????????????? | | | | | | | +----------------------------------------------------+ Best States ------------- Heat Dissipation 35 Energy Generation 10 Energy Capacity 250 Matter Stores 300 Matter Capacity 300 Sight Range 16 Terrain Scan Density 10 Armor Coverage 800 Evasion (%) 55 Targeting Accuracy 5 Recoil Reduction 2 Offensive Hacking 11 Item Schematics ----------------- None Robot Schematics ------------------ None Fabricated ------------ Nothing Alien Tech Used ----------------- None Achievements -------------- None Challenges ------------ None Game ------ Seed CoolingFlightSuperbattery Manual? 0 Play Time 00:10:12 Cumulative 378.5 hours Start 2023.07.14 @ 21:49:09 End 2023.07.14 @ 21:57:58 Sessions 1 Manual Loads 0 Difficulty Rogue Special Mode None Game No. 262 Rogue 262 Adventurer 0 Explorer 0 Win Type - Total 29 Types 25/0/3/1/0/0/0/0/0 Lore% 71 Gallery% 86 Achievement% 69 Wizard Run 0 Options --------- ASCII 0 Keyboard 1 Movement Numpad Keybinds 0 Fullscreen 2 Font 18/SmallcapsGlow Map View 76x50 Tactical HUD 1 Map Filters NONE Filters NONE Steam 1 RUN: 4f697fd3-8710-4593-b474-60ee2113618d